bitfinex/quotes_SOLUSD_20251130
["timestamp","ask_amount","ask_price","bid_price","bid_amount"]
[1764478417478,0.2,136.62,136.61,13.19134144]
[1764478417679,0.2,136.62,136.61,20.51144977]
[1764478421692,0.2,136.62,136.61,82.91144977]
[1764478422412,0.2,136.62,136.61,82.48496506]
[1764478424792,0.2,136.62,136.61,84.99496506]
[1764478425607,0.2,136.62,136.61,85.70496506]
[1764478427107,0.85,136.62,136.61,72.94010833]
[1764478430606,0.85,136.62,136.61,10.54010833]
[1764478436516,0.85,136.62,136.61,72.94010833]
[1764478438618,0.2,136.62,136.61,85.65496506]
[1764478438917,0.2,136.62,136.61,84.99496506]
[1764478439913,0.2,136.62,136.61,85.65496506]
[1764478440612,0.91,136.62,136.61,69.72010833]
[1764478440818,0.91,136.62,136.61,72.94010833]
[1764478451725,0.91,136.62,136.61,65.62]
[1764478454520,0.71,136.61,136.6,3.22]
[1764478457235,0.71,136.61,136.6,65.62]
[1764478460839,0.2,136.62,136.6,72.94064421]
[1764478461049,0.71,136.61,136.6,72.94064421]
[1764478462445,0.71,136.61,136.6,62.4]
[1764478462655,0.71,136.61,136.6,65.62]
[1764478463240,7.32064421,136.6,136.55,25.63060321]
[1764478463418,9.39649111,136.6,136.55,10.54293133]
[1764478463741,0.71,136.59,136.55,10.54293133]
[1764478463935,2.7858469,136.59,136.55,10.54293133]
[1764478464136,0.71,136.58,136.55,10.54293133]
[1764478467230,2.7858469,136.58,136.56,3.22]
[1764478467436,0.71,136.58,136.56,3.22]
[1764478467637,0.69,136.57,136.56,3.22]
[1764478475341,0.69,136.57,136.54,62.4]
[1764478475560,8.01234785,136.57,136.55,3.22]
[1764478475950,0.69,136.56,136.55,3.22]
[1764478480945,0.69,136.56,136.55,65.62]
[1764478497384,0.69,136.56,136.55,62.4]
[1764478497564,0.69,136.56,136.55,65.62]
[1764478498003,8.01278851,136.56,136.55,65.62]
[1764478500380,8.01278851,136.56,136.55,62.4]
[1764478503788,28.3956067,136.56,136.52,62.4]
[1764478503991,0.7,136.55,136.53,3.22]
[1764478504665,7.32386113,136.54,136.53,3.22]
[1764478504867,7.32386113,136.54,136.52,62.4]
[1764478505067,8.02386113,136.54,136.52,65.62]
[1764478507584,8.02386113,136.54,136.52,62.4]
[1764478507784,8.02386113,136.54,136.53,3.22]
[1764478510104,0.7,136.54,136.53,3.22]
[1764478511095,0.7,136.55,136.53,3.22]
[1764478515207,8.02337814,136.55,136.53,3.22]
[1764478515708,0.7,136.54,136.53,3.22]
[1764478530217,22.0110789,136.56,136.53,3.22]
[1764478530422,3.24788609,136.58,136.54,0.67]
[1764478530714,0.66,136.56,136.53,3.22]
[1764478530895,0.66,136.56,136.53,3.89]
[1764478531396,0.66,136.56,136.53,11.21436355]
[1764478531596,0.66,136.56,136.53,73.61436355]
[1764478533004,10.56968163,136.58,136.54,0.67]
[1764478533005,0.66,136.58,136.54,0.67]
[1764478533326,0.66,136.58,136.55,3.22]
[1764478533527,0.66,136.58,136.55,65.62]
[1764478533711,0.66,136.58,136.55,66.29]
[1764478534111,0.66,136.58,136.55,73.61332341]
[1764478534624,0.66,136.58,136.55,72.94332341]
[1764478535326,33.23590696,136.58,136.55,65.62]
[1764478535705,0.66,136.57,136.55,65.62]
[1764478535920,22.66623509,136.57,136.55,65.62]
[1764478536314,0.66,136.56,136.55,65.62]
[1764478540531,0.66,136.56,136.55,62.4]
[1764478543324,0.66,136.56,136.54,3.22]
[1764478545537,0.66,136.56,136.54,3.89]
[1764478547535,0.66,136.56,136.54,3.22]
[1764478549238,29.32860075,136.57,136.54,3.22]
[1764478549421,29.98860075,136.57,136.54,66.29]
[1764478550922,0.66,136.56,136.54,65.62]
[1764478553641,0.66,136.56,136.54,66.29]
[1764478553845,29.98860075,136.57,136.54,66.29]
[1764478555344,0.66,136.57,136.54,73.61377873]
[1764478559251,7.98225989,136.57,136.54,65.62]
[1764478559446,0.65,136.56,136.54,66.32]
[1764478559634,29.97849498,136.57,136.54,66.32]
[1764478561530,7.97225989,136.57,136.54,66.32]
[1764478562141,0.65,136.56,136.54,65.62]
[1764478562342,3.24788609,136.55,136.51,65.62]
[1764478562553,3.24788609,136.54,136.51,65.62]
[1764478562859,3.24788609,136.53,136.51,65.62]
[1764478563039,3.24788609,136.53,136.51,3.22]
[1764478563352,0.65,136.52,136.51,3.22]
[1764478564252,18.54556199,136.53,136.51,3.22]
[1764478564253,19.19556199,136.53,136.51,3.22]
[1764478564458,0.65,136.52,136.51,3.22]
[1764478564655,18.54556199,136.53,136.51,3.22]
[1764478564859,19.19556199,136.53,136.51,3.22]
[1764478565657,19.19556199,136.53,136.5,66.32]
[1764478568660,15.9476759,136.53,136.5,66.32]
[1764478568863,8.62327488,136.53,136.5,66.32]
[1764478570758,0.65,136.53,136.5,73.6459732]
[1764478596189,7.97447257,136.53,136.51,3.22]
[1764478596566,0.71,136.52,136.51,3.22]
[1764478596767,0.71,136.52,136.51,65.62]
[1764478598268,0.71,136.52,136.51,62.4]
[1764478599271,8.03493407,136.52,136.5,3.22]
[1764478599476,10.1142984,136.52,136.5,3.22]
[1764478599799,22.72592485,136.51,136.5,3.22]
[1764478601301,34.62061029,136.53,136.5,3.89]
[1764478601302,24.34338215,136.53,136.5,3.89]
[1764478602797,24.34338215,136.53,136.5,66.29]
[1764478606976,7.32451815,136.53,136.51,0.67]
[1764478607376,8.03406093,136.54,136.51,0.67]
[1764478609182,8.03406093,136.54,136.52,3.22]
[1764478611678,8.03406093,136.54,136.52,65.62]
[1764478613092,8.03406093,136.54,136.52,66.29]
[1764478613505,8.03406093,136.54,136.52,65.62]
[1764478620086,8.03406093,136.54,136.52,62.4]
[1764478620285,0.71,136.53,136.52,62.4]
[1764478620694,8.03439756,136.53,136.52,62.4]
[1764478623595,8.03439756,136.53,136.5,65.62]
[1764478623912,8.03439756,136.53,136.5,66.32]
[1764478624210,30.04709154,136.53,136.5,66.32]
[1764478624408,8.03439756,136.53,136.5,66.32]
[1764478627010,0.71,136.52,136.47,22.11269398]
[1764478627217,0.71,136.52,136.48,0.7]
[1764478627218,6.00936433,136.52,136.48,0.7]
[1764478627401,22.01754064,136.51,136.48,3.92]
[1764478627795,22.01754064,136.51,136.49,0.7]
[1764478628310,0.71,136.52,136.49,0.7]
[1764478628508,3.22,136.51,136.49,0.7]
[1764478630715,0.71,136.53,136.49,11.27551303]
[1764478631093,0.71,136.53,136.5,0.7]
[1764478631293,0.71,136.53,136.51,3.22]
[1764478635406,0.71,136.53,136.51,65.62]
[1764478637922,0.71,136.53,136.51,66.32]
[1764478638310,0.71,136.53,136.51,65.62]
[1764478638509,21.11995156,136.54,136.51,65.62]
[1764478638716,0.71,136.53,136.51,65.62]
[1764478639421,13.79604336,136.54,136.51,65.62]
[1764478639600,13.79604336,136.54,136.51,66.32]
[1764478639799,0.71,136.53,136.51,66.32]
[1764478640008,14.50604336,136.54,136.51,66.32]
[1764478640302,21.83006434,136.54,136.51,65.62]
[1764478640638,21.83006434,136.54,136.52,0.7]
[1764478640807,21.83006434,136.54,136.51,66.32]
[1764478642718,21.12006434,136.54,136.51,66.32]
[1764478642910,0.71,136.53,136.51,66.32]
[1764478646327,21.77006434,136.54,136.51,66.32]
[1764478648229,0.7,136.53,136.51,66.32]
[1764478648531,0.7,136.53,136.51,65.62]
[1764478655835,0.7,136.53,136.51,62.4]
[1764478656027,0.7,136.53,136.51,65.62]
[1764478659125,21.82006434,136.54,136.51,66.33]
[1764478659640,0.7,136.53,136.51,65.62]
[1764478660139,21.82006434,136.54,136.51,66.33]
[1764478661720,0.7,136.53,136.51,65.62]
[1764478666245,0.7,136.53,136.51,62.4]
[1764478666551,0.7,136.53,136.51,65.62]
[1764478674548,21.12006434,136.54,136.51,65.62]
[1764478674855,21.82006434,136.54,136.51,66.33]
[1764478675044,14.49604336,136.54,136.51,73.65544983]
[1764478675248,8.03340925,136.55,136.52,0.69]
[1764478675547,30.04448815,136.55,136.52,0.69]
[1764478675749,29.33448815,136.55,136.52,0.69]
[1764478675941,0.71,136.54,136.52,0.69]
[1764478676938,0.71,136.54,136.52,63.09]
[1764478678357,0.71,136.54,136.52,62.4]
[1764478681837,29.33448815,136.55,136.52,63.09]
[1764478682035,29.33448815,136.55,136.52,62.4]
[1764478682036,0.71,136.54,136.52,62.4]
[1764478682855,0.71,136.54,136.52,63.09]
[1764478684130,29.33448815,136.55,136.52,63.09]
[1764478684638,0.71,136.54,136.52,62.4]
[1764478686565,29.33448815,136.55,136.52,62.4]
[1764478686745,30.04448815,136.55,136.52,63.09]
[1764478687167,30.04448815,136.55,136.53,3.22]
[1764478687761,0.71,136.54,136.53,3.22]
[1764478690143,0.71,136.54,136.52,63.09]
[1764478690351,0.71,136.54,136.53,3.22]
[1764478690972,0.71,136.57,136.53,69.55905502]
[1764478691145,17.018864,136.57,136.54,0.69]
[1764478691347,0.71,136.59,136.55,6.46905502]
[1764478691546,0.71,136.58,136.55,6.46905502]
[1764478691748,0.71,136.58,136.55,7.15905502]
[1764478692551,0.71,136.58,136.55,5.98745255]
[1764478693061,0.71,136.58,136.55,11.23315044]
[1764478693849,0.71,136.58,136.55,3.22]
[1764478695264,2.07745255,136.56,136.5,81.87631655]
[1764478695451,2.07745255,136.55,136.52,3.22]
[1764478696066,0.71,136.54,136.52,3.91]
[1764478700849,0.71,136.54,136.52,66.71]
[1764478701263,0.71,136.54,136.52,74.03481576]
[1764478707364,0.71,136.54,136.53,3.22]
[1764478707564,0.71,136.54,136.53,66.02]
[1764478710609,7.32292835,136.56,136.53,66.02]
[1764478710810,0.71,136.55,136.53,66.02]
[1764478712413,0.71,136.56,136.53,74.01438125]
[1764478712731,0.71,136.58,136.54,11.55739747]
[1764478712901,0.71,136.57,136.55,3.22]
[1764478713902,2.78745255,136.57,136.55,3.22]
[1764478714303,0.71,136.56,136.55,3.22]
[1764478725406,0.71,136.56,136.54,62.8]
[1764478725605,0.71,136.56,136.54,66.02]
[1764478728333,0.71,136.56,136.54,62.8]
[1764478728507,0.71,136.56,136.54,66.02]
[1764478732529,8.0326996,136.57,136.54,66.69]
[1764478734136,8.0326996,136.57,136.54,63.47]
[1764478734328,8.0326996,136.57,136.55,3.22]
[1764478735112,0.71,136.56,136.55,3.22]
[1764478735930,0.71,136.56,136.55,3.22]
[1764478736235,0.71,136.56,136.54,62.8]
[1764478736434,0.71,136.56,136.54,66.02]
[1764478736917,0.71,136.56,136.54,62.8]
[1764478737118,0.71,136.56,136.55,3.22]
[1764478742221,2.07745255,136.58,136.55,3.22]
[1764478742222,7.32186814,136.58,136.55,3.22]
[1764478742426,0.71,136.57,136.55,66.02]
[1764478748131,8.03228927,136.57,136.55,66.02]
[1764478749354,0.71,136.56,136.55,66.02]
[1764478753230,7.32228927,136.57,136.55,66.02]
[1764478753431,8.03228927,136.57,136.55,66.02]
[1764478753850,7.32177154,136.58,136.56,0.72]
[1764478754036,8.03177154,136.58,136.56,0.72]
[1764478754236,8.03177154,136.58,136.56,63.52]
[1764478754437,8.03177154,136.58,136.56,62.8]
[1764478770545,8.03177154,136.58,136.56,66.02]
[1764478771353,7.32177154,136.58,136.56,66.69]
[1764478771953,8.04177154,136.58,136.56,66.69]
[1764478772860,8.04177154,136.58,136.56,66.02]
[1764478775171,8.04177154,136.58,136.56,62.8]
[1764478775356,8.04177154,136.58,136.56,66.02]
[1764478775557,0.72,136.58,136.56,66.02]
[1764478776667,22.72462097,136.58,136.56,66.02]
[1764478778974,3.96701287,136.57,136.56,62.8]
[1764478779368,25.97486233,136.57,136.56,62.8]
[1764478779753,33.29711465,136.57,136.56,62.8]
[1764478783983,33.29711465,136.57,136.54,66.02]
[1764478784285,0.72,136.56,136.54,66.02]
[1764478784778,22.72784946,136.56,136.54,66.02]
[1764478785082,0.72,136.56,136.54,66.02]
[1764478785382,22.00784946,136.55,136.54,66.02]
[1764478792890,22.00784946,136.55,136.54,62.8]
[1764478793192,22.72784946,136.55,136.54,66.02]
[1764478793865,22.00784946,136.55,136.54,66.02]
[1764478798787,22.66784946,136.55,136.54,66.02]
[1764478799295,29.99117424,136.55,136.54,62.8]
[1764478799601,33.23818711,136.55,136.51,62.8]
[1764478799775,3.24701287,136.53,136.51,62.8]
[1764478800174,22.01269398,136.52,136.51,62.8]
[1764478800397,22.67269398,136.52,136.51,62.8]
[1764478802309,22.01269398,136.52,136.51,62.8]
[1764478802797,22.01269398,136.52,136.51,63.47]
[1764478802983,11.23139859,136.54,136.51,63.47]
[1764478803184,22.01269398,136.53,136.51,63.47]
[1764478803497,22.01269398,136.53,136.52,3.22]
[1764478803682,22.67269398,136.53,136.52,3.22]
[1764478805199,29.99709154,136.53,136.52,3.22]
[1764478815604,32.0763014,136.53,136.52,3.22]
[1764478816013,32.0763014,136.53,136.48,9.47994492]
[1764478816014,32.0763014,136.53,136.5,3.22]
[1764478816331,0.66,136.52,136.5,3.22]
[1764478816704,29.99934607,136.52,136.5,3.22]
[1764478817028,7.98503677,136.52,136.5,3.22]
[1764478817410,22.0143093,136.51,136.5,3.22]
[1764478818102,22.6743093,136.51,136.5,3.22]
[1764478819216,29.99980409,136.51,136.48,62.8]
[1764478819423,0.66,136.5,136.49,3.22]
[1764478819924,22.67754064,136.5,136.49,3.22]
[1764478820123,30.00354796,136.5,136.49,3.22]
[1764478820800,30.00354796,136.5,136.48,3.22]
[1764478821002,0.68,136.49,136.48,3.22]
[1764478821422,8.67780218,136.49,136.48,3.22]
[1764478821800,8.67780218,136.49,136.47,0.1]
[1764478822013,0.68,136.48,136.47,3.32]
[1764478822409,10.08521718,136.48,136.47,3.32]
[1764478822800,10.08521718,136.48,136.47,0.1]
[1764478823404,9.40521718,136.48,136.47,0.1]
[1764478823629,0.68,136.49,136.47,0.1]
[1764478823806,8.09869182,136.48,136.47,0.1]
[1764478824418,8.09869182,136.48,136.47,3.32]
[1764478826609,8.09869182,136.48,136.47,3.98]
[1764478826809,8.09869182,136.48,136.47,0.76]
[1764478827023,8.09869182,136.48,136.47,3.98]
[1764478828241,8.75869182,136.48,136.47,3.32]
[1764478828423,8.09869182,136.48,136.47,3.32]
[1764478831417,8.09869182,136.48,136.47,66.12]
[1764478833004,8.75869182,136.48,136.47,66.12]
[1764478836635,8.09869182,136.48,136.47,66.12]
[1764478836828,0.66,136.49,136.47,66.12]
[1764478837015,8.75869182,136.49,136.47,66.12]
[1764478843936,8.75869182,136.49,136.47,62.9]
[1764478844137,8.75869182,136.49,136.47,66.12]
[1764478861740,0.66,136.52,136.48,2.76920986]
[1764478861946,2.07920986,136.5,136.48,62.8]
[1764478862161,2.07920986,136.49,136.47,0.1]
[1764478862348,2.07920986,136.48,136.47,0.1]
[1764478862552,0.66,136.48,136.47,0.1]
[1764478862845,9.41869182,136.48,136.47,0.1]
[1764478863769,16.74577271,136.48,136.47,0.1]
[1764478864968,18.96714414,136.48,136.47,0.1]
[1764478866463,19.25146728,136.48,136.47,0.1]
[1764478870752,18.82498257,136.48,136.47,0.1]
[1764478871373,16.74577271,136.48,136.47,0.1]
[1764478871959,18.82498257,136.48,136.47,0.1]
[1764478873157,18.96714414,136.48,136.47,0.1]
[1764478875980,19.25146728,136.48,136.47,0.1]
[1764478876679,20.42580693,136.48,136.47,0.1]
[1764478889190,16.308864,136.46,136.45,0.1]
[1764478889388,23.06673665,136.46,136.45,0.1]
[1764478889593,23.75673665,136.46,136.45,0.1]
[1764478889792,26.69413338,136.46,136.45,0.1]
[1764478890907,34.02228815,136.46,136.45,0.1]
[1764478906408,30.62657707,136.46,136.45,0.1]
[1764478906618,33.19012658,136.46,136.45,0.1]
[1764478907022,29.93657707,136.46,136.45,0.1]
[1764478907195,26.71657707,136.46,136.45,0.1]
[1764478908794,29.97012658,136.46,136.45,0.1]
[1764478914119,26.5744155,136.46,136.45,0.79]
[1764478914303,23.63701877,136.46,136.45,0.79]
[1764478923516,29.35337748,136.47,136.45,0.79]
[1764478923720,18.31770222,136.48,136.45,63.59]
[1764478923721,7.32726932,136.48,136.45,63.59]
[1764478923908,7.32671886,136.49,136.45,8.11866184]
[1764478924224,3.25354951,136.48,136.45,63.59]
[1764478924528,3.25354951,136.47,136.45,63.59]
[1764478924711,3.25354951,136.48,136.46,0.69]
[1764478924911,25.95755567,136.48,136.46,0.69]
[1764478925319,7.32761779,136.47,136.45,62.9]
[1764478925519,7.32761779,136.47,136.46,0.69]
[1764478926323,7.32761779,136.47,136.45,62.9]
[1764478926502,7.32761779,136.47,136.45,63.59]
[1764478926909,8.00761779,136.47,136.45,63.59]
[1764478927106,7.32761779,136.47,136.45,63.59]
[1764478929424,7.32761779,136.47,136.45,0.79]
[1764478936726,8.00761779,136.47,136.45,0.1]
[1764478937128,8.00761779,136.47,136.45,0.79]
[1764478937321,7.32761779,136.47,136.45,0.1]
[1764478937529,0.68,136.46,136.45,0.1]
[1764478938129,10.08880388,136.47,136.45,0.1]
[1764478938334,0.68,136.46,136.45,0.1]
[1764478938534,8.00815477,136.46,136.45,0.1]
[1764478939243,10.23150243,136.46,136.45,0.1]
[1764478939646,32.26036023,136.46,136.45,0.1]
[1764478947746,30.17917414,136.46,136.45,0.1]
[1764478952843,32.26036023,136.46,136.45,0.1]
[1764478953749,16.45102557,136.43,136.42,0.1]
[1764478953931,18.53221166,136.43,136.42,0.1]
[1764478954132,19.21221166,136.43,136.42,0.1]
[1764478954333,22.15003987,136.43,136.42,0.1]
[1764478954840,22.43436301,136.43,136.42,0.1]
[1764478956537,29.76412919,136.43,136.42,0.1]
[1764478963167,38.57407411,136.43,136.42,0.1]
[1764478963648,38.57407411,136.43,136.42,1e-08]
[1764478965358,29.76412919,136.43,136.42,1e-08]
[1764478969742,9.23642963,136.42,136.41,1e-08]
[1764478969947,15.21761572,136.42,136.41,1e-08]
[1764478970361,18.15630726,136.42,136.41,1e-08]
[1764478970746,25.48661073,136.42,136.41,1e-08]
[1764478975977,23.40542464,136.42,136.41,1e-08]
[1764478977076,25.48661073,136.42,136.41,1e-08]
[1764478986784,15.99666581,136.42,136.41,1e-08]
[1764478987486,16.70666581,136.42,136.41,1e-08]
[1764478992279,15.99666581,136.42,136.41,1e-08]
[1764478996388,26.72002058,136.42,136.41,0.69000001]
[1764478996595,2.93869154,136.42,136.41,0.69000001]
[1764478996895,10.54979167,136.43,136.41,0.69000001]
[1764478997077,2.93761245,136.42,136.41,0.69000001]
[1764478997282,10.54979167,136.43,136.41,0.69000001]
[1764478997602,13.48740412,136.43,136.41,0.69000001]
[1764478999393,10.54979167,136.43,136.41,0.69000001]
[1764478999991,7.32979167,136.43,136.41,0.69000001]
[1764479000301,0.14216157,136.42,136.41,0.69000001]
[1764479000609,7.04387502,136.42,136.41,1e-08]
[1764479001606,29.97304249,136.42,136.41,1e-08]
[1764479001789,30.66304249,136.42,136.41,1e-08]
[1764479004214,30.94736563,136.42,136.41,1e-08]
[1764479007199,29.97304249,136.42,136.41,1e-08]
[1764479008004,30.65304249,136.42,136.41,1e-08]
[1764479008885,29.97304249,136.42,136.41,1e-08]
[1764479010011,30.65304249,136.42,136.41,1e-08]
[1764479012498,30.65304249,136.42,136.41,1e-08]
[1764479020114,29.97304249,136.42,136.41,1e-08]
[1764479024216,30.65304249,136.42,136.41,1e-08]
[1764479024615,29.97304249,136.42,136.41,1e-08]
[1764479026823,30.65304249,136.42,136.41,1e-08]
[1764479027912,14.34417849,136.42,136.41,1e-08]
[1764479030908,23.43844655,136.42,136.41,1e-08]
[1764479031106,0.82216157,136.41,136.4,1e-08]
[1764479031420,7.29583103,136.41,136.4,1e-08]
[1764479031821,10.23452257,136.41,136.4,1e-08]
[1764479032725,26.65963147,136.41,136.4,1e-08]
[1764479034624,19.8468566,136.39,136.38,0.1]
[1764479034809,23.0668566,136.39,136.38,0.1]
[1764479035102,23.7468566,136.39,136.38,0.1]
[1764479035303,26.82792563,136.39,136.38,0.1]
[1764479035911,0.28432314,136.38,136.37,0.04232183]
[1764479036231,4.2579926,136.38,136.37,0.04232183]
[1764479036529,14.52956943,136.38,136.37,0.04232183]
[1764479039127,14.671731,136.38,136.37,0.04232183]
[1764479039820,14.52956943,136.38,136.37,0.04232183]
[1764479041227,14.38740786,136.38,136.37,0.04232183]
[1764479044337,14.671731,136.38,136.37,0.04232183]
[1764479044930,10.69806154,136.38,136.37,0.04232183]
[1764479045120,13.951731,136.38,136.37,0.04232183]
[1764479045737,14.671731,136.38,136.37,0.04232183]
[1764479047927,13.951731,136.38,136.37,0.04232183]
[1764479048128,14.671731,136.38,136.37,0.04232183]
[1764479050337,9.95642963,136.37,136.36,1e-08]
[1764479050538,16.43009909,136.37,136.36,1e-08]
[1764479051046,19.36987052,136.37,136.36,1e-08]
[1764479051439,26.70286164,136.37,136.36,1e-08]
[1764479052323,13.21009909,136.36,136.35,1e-08]
[1764479052649,3.68015417,136.36,136.35,0.71000001]
[1764479052836,3.68015417,136.36,136.35,1e-08]
[1764479053147,6.61970956,136.36,136.35,1e-08]
[1764479053516,13.95323845,136.36,136.35,1e-08]
[1764479056938,14.67323845,136.36,136.35,1e-08]
[1764479060645,13.50499047,136.36,136.35,1e-08]
[1764479064241,16.00499047,136.36,136.35,1e-08]
[1764479064543,30.22843299,136.36,136.35,0.66000001]
[1764479064763,32.31385447,136.36,136.35,0.66000001]
[1764479066430,32.31385447,136.36,136.35,1e-08]
[1764479066656,32.98385447,136.36,136.35,1e-08]
[1764479067537,32.31385447,136.36,136.35,1e-08]
[1764479071171,29.94410985,136.36,136.35,0.70000001]
[1764479071560,29.80194828,136.36,136.35,0.70000001]
[1764479072363,26.86239289,136.36,136.35,0.70000001]
[1764479073461,29.80173227,136.36,136.35,0.70000001]
[1764479074753,26.72389384,136.36,136.35,0.70000001]
[1764479074954,27.00455446,136.36,136.35,0.70000001]
[1764479076864,26.86239289,136.36,136.35,0.70000001]
[1764479083251,29.80151629,136.36,136.35,0.70000001]
[1764479083945,26.86239289,136.36,136.35,0.70000001]
[1764479084347,28.94781437,136.36,136.35,1e-08]
[1764479084547,29.75997594,136.36,136.35,1e-08]
[1764479084743,32.02931532,136.36,136.35,1e-08]
[1764479085560,32.69931532,136.36,136.35,1e-08]
[1764479085956,32.98363846,136.36,136.35,1e-08]
[1764479099374,32.31363846,136.36,136.35,1e-08]
[1764479100193,32.99363846,136.36,136.35,1e-08]
[1764479100997,32.31363846,136.36,136.35,1e-08]
[1764479103090,32.99363846,136.36,136.35,1e-08]
[1764479106699,32.31363846,136.36,136.35,1e-08]
[1764479107387,32.99363846,136.36,136.35,1e-08]
[1764479120601,34.16668027,136.36,136.35,1e-08]
[1764479121297,26.66776119,136.36,136.35,1e-08]
[1764479132732,29.92622448,136.36,136.35,1e-08]
[1764479132922,3.40062486,136.34,136.33,1e-08]
[1764479133113,13.95522952,136.34,136.33,1e-08]
[1764479133314,14.61522952,136.34,136.33,1e-08]
[1764479133627,17.55543312,136.34,136.33,1e-08]
[1764479134229,26.64970118,136.34,136.33,1e-08]
[1764479138914,26.64970118,136.34,136.31,0.1]
[1764479138915,25.11880892,136.32,136.31,1e-08]
[1764479139149,32.02375692,136.32,136.31,1e-08]
[1764479139325,40.01943767,136.32,136.31,1e-08]
[1764479139524,42.96028978,136.32,136.31,1e-08]
[1764479140037,42.30028978,136.32,136.31,1e-08]
[1764479140215,30.23188157,136.32,136.31,1e-08]
[1764479140420,33.49034486,136.32,136.31,1e-08]
[1764479140633,42.96028978,136.32,136.31,1e-08]
[1764479148039,33.49034486,136.32,136.31,1e-08]
[1764479148823,34.15034486,136.32,136.31,1e-08]
[1764479156357,42.96028978,136.32,136.31,1e-08]
[1764479165434,39.04182649,136.32,136.31,1e-08]
[1764479165638,42.30028978,136.32,136.31,1e-08]
[1764479165960,43.01028978,136.32,136.31,1e-08]
[1764479166963,33.49034486,136.32,136.31,1e-08]
[1764479167456,33.20602172,136.32,136.31,1e-08]
[1764479167654,34.20034486,136.32,136.31,1e-08]
[1764479168362,10.27653286,136.32,136.31,1e-08]
[1764479168538,14.24499615,136.32,136.31,1e-08]
[1764479168738,11.41301757,136.32,136.31,1e-08]
[1764479169041,30.98034486,136.32,136.31,1e-08]
[1764479170054,30.27034486,136.32,136.31,1e-08]
[1764479176758,23.48142578,136.32,136.31,1e-08]
[1764479179063,13.96148086,136.32,136.31,0.70000001]
[1764479179261,13.96148086,136.32,136.31,1e-08]
[1764479179262,29.84386015,136.32,136.31,1e-08]
[1764479179447,30.27034486,136.32,136.31,1e-08]
[1764479180461,30.27034486,136.32,136.31,0.70000001]
[1764479180851,30.27034486,136.32,136.31,1e-08]
[1764479182076,26.58539686,136.32,136.31,0.69000001]
[1764479182449,26.72755843,136.32,136.31,0.69000001]
[1764479184252,28.81333224,136.32,136.31,0.69000001]
[1764479185653,29.79765538,136.32,136.31,1e-08]
[1764479186577,22.2987363,136.32,136.31,1e-08]
[1764479190081,16.308864,136.28,136.27,0.1]
[1764479190379,22.04112252,136.28,136.27,0.1]
[1764479190765,24.98240712,136.28,136.27,0.1]
[1764479192160,39.0444121,136.28,136.27,0.1]
[1764479192380,32.32024099,136.28,136.27,0.1]
[1764479203083,16.45102557,136.25,136.24,1e-08]
[1764479203292,2.22793538,136.25,136.24,1e-08]
[1764479203687,5.17008535,136.25,136.24,1e-08]
[1764479204672,21.47894935,136.25,136.24,1e-08]
[1764479204880,5.17008535,136.25,136.24,1e-08]
[1764479205287,12.50953489,136.25,136.24,1e-08]
[1764479206863,29.51839889,136.25,136.24,1e-08]
[1764479207069,13.20953489,136.25,136.24,1e-08]
[1764479207263,28.81839889,136.25,136.24,1e-08]
[1764479207489,12.50953489,136.25,136.24,1e-08]
[1764479213768,29.10272203,136.25,136.24,0.65000001]
[1764479215192,28.81839889,136.25,136.24,0.65000001]
[1764479219093,28.81839889,136.25,136.24,1e-08]
[1764479219597,29.10272203,136.25,136.24,1e-08]